Cogmind - Beta 16.1 @@@ ROGUE MODE // 2026.04.06 @ 21:16:24 Player: Dosh Result: Destroyed by Y-45 Defender with Heavy Assault Rifle Performance ------------- Evolutions (0) 0 Regions Visited (3) 600 Robots Destroyed (34) 170 Value Destroyed (877) 877 Prototype IDs (16) 320 Alien Tech Used (0) 0 Bonus (0) 0 TOTAL SCORE: 1967 Bonus ------- None Cogmind --------- Core Integrity 0/250 Matter 300/300 Energy 247/265 System Corruption 1% Temperature Warning (339) Movement Treading (240) Ox1 Location -9/Recycling Parts ------- > --- POWER (1) -------- Improved Ion Engine > --- PROPULSION (2) --- Light Treads Light Treads > --- UTILITY (2) ------ High-capacity Storage Unit Medium Armor Plating > --- WEAPON (2) ------- Subdweller Laser Beam Cannon > --- INVENTORY (20) --- Light Ion Engine Subdweller Power Source Flightbrick Large Storage Unit Huge Storage Unit High-capacity Matter Pod (200) Cobbler Unit Beam Cannon Light Assault Rifle Heavy Assault Rifle Grenade Launcher 1B-0RG's Assimilator Peak State ------------ > --- POWER ------------ Improved Ion Engine > --- PROPULSION ------- Light Treads Light Treads > --- UTILITY ---------- High-capacity Storage Unit Medium Armor Plating > --- WEAPON ----------- Subdweller Laser Beam Cannon > --- INVENTORY -------- Light Ion Engine Subdweller Power Source Flightbrick Large Storage Unit Huge Storage Unit High-capacity Matter Pod Cobbler Unit Beam Cannon Beam Cannon Light Assault Rifle Grenade Launcher 1B-0RG's Assimilator [Rating: 21] Favorites ----------- Power Ion Engine Engine Ion Engine Propulsion Light Treads Treads Light Treads Utility Large Storage Unit Device Heat Sink Storage Large Storage Unit Protection Propulsion Shielding Weapon Beam Cannon Energy Gun Subdweller Laser Energy Cannon Beam Cannon Ballistic Gun Light Assault Rifle Launcher Grenade Launcher Build | -11 -10 -10 -9 ------- Run | Yrd Mat Sub Rec Slots Evolved . | . . . . Power . | . . . . Propulsion . | . . . . Utility . | . . . . Weapon . | . . . . Parts Attached 21 | 5 6 7 3 Power 3 | 1 . 1 1 Engine 3 | 1 . 1 1 Core . | . . . . Reactor . | . . . . Propulsion 4 | 2 . 2 . Treads 4 | 2 . 2 . Leg . | . . . . Wheel . | . . . . Hover . | . . . . Flight . | . . . . Utility 6 | . 4 1 1 Device 2 | . 2 . . Storage 2 | . 1 1 . Processor . | . . . . Hackware . | . . . . Protection 2 | . 1 . 1 Artifact . | . . . . Weapon 8 | 2 2 3 1 Energy Gun 1 | . . 1 . Energy Cannon 4 | . 2 1 1 Ballistic Gun 2 | 2 . . . Ballistic Cannon . | . . . . Launcher 1 | . . 1 . Special Weapon . | . . . . Impact Weapon . | . . . . Slashing Weapon . | . . . . Piercing Weapon . | . . . . Special Melee Weapon . | . . . . Unidentified Prototypes . | . . . . Parts Lost 6 | . . 5 1 Power 1 | . . 1 . Propulsion 2 | . . 2 . Utility 1 | . . 1 . Weapon 2 | . . 1 1 Highest Loss Streak 2 | . . 2 1 To Critical Strikes . | . . . . Average Backups 9 | 1 7 11 11 Power 1 | . 1 1 1 Propulsion . | . . 1 1 Utility 3 | . 3 5 4 Weapon 3 | . 3 3 3 Tool/Special . | . . . . Unused Backups 9 | . . 1 8 Power 1 | . . . 1 Propulsion 1 | . . . 1 Utility 4 | . . 1 3 Weapon 2 | . . . 2 Tool/Special 1 | . . . 1 Average Slot Usage (%) 94 | . 96 93 92 Engine 13 | . 14 13 14 Treads 27 | . 28 27 28 Device 5 | . 9 . . Storage 13 | . 13 14 14 Protection 4 | . 1 8 6 Energy Gun 2 | . . 3 14 Energy Cannon 21 | . 21 24 14 Ballistic Gun 3 | . 6 . . Peak Build Rating 21 | 5 8 19 21 Average Rating 9 | 4 6 10 19 On Entrance 8 | . 5 8 19 Avg Prop Armor Cover (%) . | . . . . Naked Turns . | . . . . Heaviest Build 61 | 8 32 52 61 Greatest Support 40 | 40 40 40 40 Greatest Overweight (x) 1 | . . 1 1 Average Overweight (x) . | . . . 1 Largest Inventory Capacity 20 | 5 15 20 20 Average Capacity 15 | 5 14 15 20 Most Carried 20 | 3 12 19 20 Average Carried 10 | 1 7 13 19 Final Capacity 20 | 5 15 20 20 Final Carried 20 | 3 12 19 20 Class Distribution -------------------- 79% | Mutant 20% | Scavenger-Mutant Dominant Class ---------------- Mutant | -10/Materials Mutant | -10/Subcaves Scavenger-Mutant | -9/Recycling Resources | -11 -10 -10 -9 ----------- Run | Yrd Mat Sub Rec Matter Collected 805 | 234 236 305 30 Remotely . | . . . . Salvage Created 1096 | . 748 239 109 Parts 59 | . 39 16 4 Haulers Intercepted 2 | . 2 . . Recyclers Shooed 2 | . 2 . . Parts Field Recycled . | . . . . Retrieved Matter . | . . . . Parts Self-Destructed 16 | . . 16 . Prevented . | . . . . Parts Restored . | . . . . Kills | -11 -10 -10 -9 ------- Run | Yrd Mat Sub Rec Combat Hostiles Destroyed 24 | . 14 8 2 Guns 5 | . 4 . 1 Cannons 16 | . 10 5 1 AOE 2 | . . 2 . Classes Destroyed 10 | . 7 2 1 Builder 1 | . 1 . . Hauler 2 | . 2 . . Recycler 1 | . 1 . . Operator 2 | . 2 . . Turret 2 | . . 2 . Watcher 2 | . 2 . . Swarmer 6 | . 3 3 . Grunt 13 | . 11 2 . Sentry 2 | . . . 2 Subdweller 3 | . . 3 . Best Kill Streak 5 | . 3 5 1 Combat Bots Only 3 | . 3 3 1 Max Kills in Single Turn 1 | . 1 1 1 Gunslinging . | . . . . Exploded 1 | . . 1 . Melee . | . . . . Uniques/NPCs Destroyed . | . . . . Combat | -11 -10 -10 -9 -------- Run | Yrd Mat Sub Rec Hostile Shots Fired 148 | . 53 69 26 Missed 47 | . 12 30 5 Hits 101 | . 41 39 21 Projectile 101 | . 41 39 21 Damage Taken 1272 | . 466 494 312 Core 259 | . 119 83 57 Absorbed by Shields . | . . . . Redirected to Shielding 53 | . . 53 . Core Remaining (%) 100 | 100 . . . Volleys Fired 116 | . 63 38 15 Largest 2 | . 2 2 2 Hottest 120 | . 120 120 120 Shots Fired 227 | . 126 71 30 Gun 78 | . 62 1 15 Cannon 144 | . 64 65 15 Launcher 5 | . . 5 . Special . | . . . . Kinetic 62 | . 62 . . Thermal 160 | . 64 66 30 Explosive 5 | . . 5 . Electromagnetic . | . . . . Robot Hit Streak 12 | . 12 6 12 Robot Miss Streak 4 | . 4 4 2 Penetration Max . | . . . . Secondary Targets . | . . . . Shots Hit Robots 135 | . 82 30 23 Core Hits 56 | . 34 17 5 Critical Kills 1 | . . 1 . Critical Parts Destroyed 2 | . 1 . 1 Critical Strikes 3 | . 1 1 1 Meltdown 1 | . . 1 . Destroy 2 | . 1 . 1 Melee Attacks . | . . . . Impact . | . . . . Slashing . | . . . . Piercing . | . . . . Sneak Attacks . | . . . . Combat Hostiles . | . . . . Follow-up Attacks . | . . . . Damage Inflicted 2301 | . 1202 666 433 Guns 652 | . 426 . 226 Cannons 1414 | . 711 496 207 Explosions 170 | . . 170 . Melee . | . . . . Ramming 65 | . 65 . . Kinetic 426 | . 426 . . Thermal 1640 | . 711 496 433 Explosive 170 | . . 170 . Electromagnetic . | . . . . Impact . | . . . . Slashing . | . . . . Piercing . | . . . . Highest Corruption 1 | . 1 1 1 Average Corruption 1 | . 1 1 1 Corruption Purged . | . . . . Corruption Blocked . | . . . . Effects 13 | . 5 6 2 Message Errors 5 | . 3 1 1 Matter Fused 3 | . 1 2 . Energy Discharges 3 | . 1 2 . Parts Fused 1 | . . 1 . Data Loss (minor) 1 | . . . 1 Overload Shots . | . . . . Overflow Damage 23 | . 23 . . Projectiles 23 | . 23 . . Explosions . | . . . . Melee . | . . . . Knockbacks . | . . . . Impact . | . . . . Kinetic . | . . . . Secondary . | . . . . Self-Inflicted Damage 45 | . . 45 . Shots 2 | . . 2 . Rammed 8 | . 8 . . Targets Rammed 8 | . 8 . . Kicked . | . . . . Crushed . | . . . . Highest Temperature 380 | . 180 48 380 Average Temperature 85 | . 55 21 168 Received Heat Transfer 432 | . 165 186 81 Siege Activations . | . . . . Martial Activations . | . . . . Shielding Activations . | . . . . Robots Disrupted . | . . . . Combat Hostiles . | . . . . Robots Corrupted . | . . . . Combat Hostiles . | . . . . Parts Fried . | . . . . Impact Corruptions . | . . . . Robots Melted 1 | . . 1 . Combat Hostiles 1 | . . 1 . Parts Melted 5 | . . 2 3 Heat Transferred 3235 | . 1480 1036 719 Parts Sabotaged . | . . . . Parts Stolen . | . . . . Parts Stripped . | . . . . Power Chain Reactions . | . . . . Alert | -11 -10 -10 -9 ------- Run | Yrd Mat Sub Rec Maximum Alert Level . | . . . . Low Security (%) 100 | 100 100 . 100 Level 1 . | . . . . Level 2 . | . . . . Level 3 . | . . . . Level 4 . | . . . . Level 5 . | . . . . High Security . | . . . . Max Security . | . . . . Peak Influence 99 | . 99 . 60 Initial . | . . . . Average 28 | . 33 . 11 Influence Increases 792 | . 451 240 101 Destroy 0b10 Robot/C 460 | . 280 140 40 Destroy 0b10 Robot/NC 40 | . 40 . . Destroy Leader 88 | . 78 10 . Successful Hack 6 | . 6 . . Select Force Hacks 90 | . 30 . 60 Destroy Structure 3 | . 2 . 1 Lose Combat Pursuer 105 | . 15 90 . Influence Decreases 792 | . 405 286 101 Entered New Map 23 | . . 23 . Time Decay 719 | . 405 213 101 Lost Part 50 | . . 50 . Squads Dispatched 5 | . 5 . . Investigation 3 | . 3 . . Extermination . | . . . . Reinforcement 2 | . 2 . . Assault . | . . . . Garrison . | . . . . Intercept . | . . . . Searches Triggered . | . . . . Construction Impeded . | . . . . Haulers Reinforced . | . . . . Active Scanning Responses . | . . . . Cargo Convoy Interrupts . | . . . . Stealth | -11 -10 -10 -9 --------- Run | Yrd Mat Sub Rec Distress Signals 1 | . 1 . . Communications Jammed . | . . . . Distress Signals . | . . . . Times Spotted 41 | . 27 11 3 Peak Tracking Total 4 | . 4 2 1 Tactical Retreats 3 | . 1 2 . Traps | -11 -10 -10 -9 ------- Run | Yrd Mat Sub Rec Traps Triggered 1 | . 1 . . Indirectly . | . . . . Trap Hack Attempts . | . . . . Triggered . | . . . . Disarmed . | . . . . Reprogrammed . | . . . . Reused . | . . . . Traps Extracted . | . . . . Installed . | . . . . Triggered . | . . . . Machines | -11 -10 -10 -9 ---------- Run | Yrd Mat Sub Rec Machines Disabled 3 | . . 3 . Max in Single Turn 1 | . . 1 . Machines Repaired . | . . . . Machines Dismantled . | . . . . Machines Sabotaged . | . . . . Overloaded Fab Kills . | . . . . Hacking | -11 -10 -10 -9 --------- Run | Yrd Mat Sub Rec Machines Accessed 10 | . 7 1 2 Terminals 5 | . 5 . . Fabricators . | . . . . Repair Stations 1 | . 1 . . Recycling Units 3 | . 1 . 2 Scanalyzers . | . . . . Garrison Access . | . . . . Total Hacks 20 | . 17 1 2 Successful 10 | . 7 1 2 Failed 10 | . 10 . . Catastrophic 1 | . 1 . . Database Lockouts . | . . . . Manual 13 | . 11 . 2 Terminals 13 | . 13 . . Fabricators . | . . . . Repair Stations 3 | . 3 . . Recycling Units 3 | . 1 . 2 Scanalyzers . | . . . . Garrison Access . | . . . . Terminal Hacks 6 | . 5 1 . Robot Analysis 2 | . 2 . . Prototype ID Bank 3 | . 3 . . Proto ID Catalog 1 | . . 1 . Fabricator Hacks . | . . . . Repair Station Hacks 1 | . 1 . . Scan Component 1 | . 1 . . Recycling Unit Hacks . | . . . . Scanalyzer . | . . . . Garrison Access Hacks . | . . . . Unauthorized Hacks 3 | . 1 . 2 Terminals . | . . . . Fabricators . | . . . . Repair Stations . | . . . . Recycling Units 3 | . 1 . 2 Tunnel 3 | . 1 . 2 Scanalyzers . | . . . . Garrison Access . | . . . . Data Cores Recovered . | . . . . Used . | . . . . Hacking Detections 6 | . 6 . . Full Trace Events 2 | . 2 . . Feedback Events . | . . . . Feedback Blocked . | . . . . Robot Schematics Acquired . | . . . . Robots Built . | . . . . Authchips . | . . . . Time . | . . . . Total Robot Build Rating . | . . . . Part Schematics Acquired . | . . . . Parts Built . | . . . . Authchips . | . . . . Time . | . . . . Total Part Build Rating . | . . . . Part Studies Acquired . | . . . . Parts Repaired . | . . . . Time . | . . . . Parts Recycled . | . . . . Recycled Matter . | . . . . Retrieved Matter . | . . . . Retrieved Components . | . . . . Parts Scanalyzed . | . . . . Part Schematics Acquired . | . . . . Parts Damaged . | . . . . Bothacking | -11 -10 -10 -9 ------------ Run | Yrd Mat Sub Rec Used RIF Installer . | . . . . Robots Hacked . | . . . . Non-combat . | . . . . Combat . | . . . . Robot Hacks Applied . | . . . . Relay Couplers Released . | . . . . Fabnet Peak Effective % . | . . . . Robots Rewired . | . . . . Allies Hacked . | . . . . Hacks Repelled . | . . . . Allies | -11 -10 -10 -9 -------- Run | Yrd Mat Sub Rec Total Allies . | . . . . Largest Group . | . . . . Highest-Rated Group . | . . . . Highest-Rated Ally . | . . . . Total Orders . | . . . . Ally Attacks . | . . . . Total Damage . | . . . . Kills . | . . . . Allies Corrupted . | . . . . Allies Melted . | . . . . Intel | -11 -10 -10 -9 ------- Run | Yrd Mat Sub Rec Active Infowar (turns) . | . . . . Robot Analysis Total 2 | . 2 . . Derelict Logs Recovered . | . . . . Drone Launches . | . . . . Drone Recoveries . | . . . . Exploration | -11 -10 -10 -9 ------------- Run | Yrd Mat Sub Rec Turns Passed 2890 | 74 1581 833 402 Spaces Moved 1416 | 48 815 407 146 Core 11 | 11 . . . Treads 1405 | 37 815 407 146 Legs . | . . . . Wheels . | . . . . Hover . | . . . . Flight . | . . . . Fastest Speed 50 | 50 160 160 240 Average Speed 171 | 134 160 173 240 Slowest Speed 240 | 160 160 240 240 Overloaded Moves . | . . . . Propulsion Burnouts . | . . . . Robots Hopped . | . . . . Potential Cave-ins . | . . . . Cave-ins Triggered . | . . . . Exploration Rate (%) 37 | 3 96 23 27 Regions Visited 3 Branch Regions 2 Pre-discovered Areas 3 | . 1 . 2 Known Exits Taken . | . . . . Unknown Exits Taken 3 | 1 1 1 . Scrap Searched . | . . . . Spaces Dug . | . . . . Terrain Destroyed 23 | . . 23 . Melee . | . . . . Projectile . | . . . . AOE 23 | . . 23 . Terrain Rammed . | . . . . Walls Destroyed . | . . . . Machines Disabled . | . . . . Actions | -11 -10 -10 -9 --------- Run | Yrd Mat Sub Rec Total 1650 | 55 965 462 168 Wait 73 | . 66 4 3 Move 1413 | 47 814 406 146 Hop . | . . . . Pick Up 16 | 3 8 4 1 Fast Attach 9 | 5 2 1 1 Attach 4 | . . 3 1 Detach . | . . . . Swap 9 | . 4 4 1 Drop 2 | . . 2 . Fire 116 | . 63 38 15 Melee . | . . . . Ram . | . . . . Kick . | . . . . Crush 8 | . 8 . . Escape Stasis . | . . . . Rewire . | . . . . Trap . | . . . . Miscellaneous . | . . . . Route ------- -11/Scrapyard -10/Materials (discovered 6 exits: [*Mat x3] / [*Min x2] / *Sub) -10/Subcaves -9/Recycling History --------- Turn | Location | Event 53 | -11/Scrapyard | Discovered new exit (range 15) 75 | -11/Scrapyard | Entered Materials 315 | -10/Materials | Build established: Mutant 530 | -10/Materials | Discovered new exit (range 7) 735 | -10/Materials | Discovered new exit (range 16) 1134 | -10/Materials | Discovered new exit (range 6) 1393 | -10/Materials | Discovered new exit (range 4) 1465 | -10/Materials | Discovered new exit (range 7) 1537 | -10/Materials | Discovered new exit (range 15) 1656 | -10/Materials | Entered Subcaves 1657 | -10/Subcaves | Approached by a straggling Scientist 1734 | -10/Subcaves | Shifting Twisted Machinery released Flamer 1734 | -10/Subcaves | Shifting Twisted Machinery released Flamer 1975 | -10/Subcaves | Core integrity fell below 50% 2028 | -10/Subcaves | Discovered new exit (range 16) 2162 | -10/Subcaves | Ambushed by Subdweller buried in earth 2168 | -10/Subcaves | Core integrity fell below 20% 2190 | -10/Subcaves | Visited 4L-MR0's lab 2316 | -10/Subcaves | Found Flightbrick 2325 | -10/Subcaves | Found Prototype Special Melee Weapon 2489 | -10/Subcaves | Entered Recycling 2585 | -9/Recycling | Build established: Scavenger-Mutant 2891 | -9/Recycling | Destroyed by Y-45 Defender with Heavy Assault Rifle Last Messages --------------- 02590_ Connecting with Recycling Unit... 02590_ Current location identified: Recycling >>Force(Tunnel) DISCOVERED[-5/Factory] 02594_ Connecting with Recycling Unit... >>Force(Tunnel) DISCOVERED[-8/Materials] 02695_ Acquired Med. Armor Plating. 02701_ Acquired 10 matter. 02778_ Y-45 Defender springs to life. 02782_ Beam Cannon destroyed. 02790_ Heat Sink melted. 02790_ Lgt. Treads melted. 02790_ Y-45 Defender destroyed. 02805_ Acquired Hvy. Assault Rifle. 02806_ Acquired 10 matter. 02811_ R-06 Scavenger collects Heat Sink. 02813_ R-06 Scavenger collects Beam Rifle. 02879_ Y-45 Defender springs to life. 02891_ Y-45 Defender heat short circuits Heat Sink. Map ----- +----------------------------------------------------+ | ????########### # #?????????????????????? | | ??????????????# # #?????????????????????? | | ????########### #### #####?????????????????????? | | ????# # #???##?????????????????????????? | | ????# # #??????????????????????????????? | | ????# + #??????????????????????????????? | | ???# # #??????????????????????????????? | | ???## # #???##?##??????????????????????? | | ????# # #### ## ##?????????????????????? | | ????# # # #?????????????????????? | | ????# # # ! %#?????????????????????? | | ????########+## # [ #?????????????????????? | | ???????????# # #?????????????????????? | | ???????????# # #?????????????????????? | | ???????????# # #?????????????????????? | | ??????????##% + [ ####??????????????????? | | ??????????# # ! / ??????????????? | | ??????????## + [######????????????????? | | ???????????# ##########?????????????????????? | | ???????????# #?????????????????? "??????????? | | ????????########+########?##??????? "??????????? | | ????????# ##Y###### ?????????? | | ????????# ; u ?????????? | | ????????# # ????????? | | ????????# # ????????? | | ????????# /@ ????????? | | ????????# ###### #????????????? | | ????????# #????????????????????????? | | ????????# #????????????????????????? | | ????????# #????????????????????????? | | ????????# #????????????????????????? | | ????????### #### ########????????????????????????? | | ??????????##???##????????????????????????????????? | | ?????????????????????????????????????????????????? | | | | | | | | | | | | | | | | | | | | | | | | | | | | | | | | | +----------------------------------------------------+ Best States ------------- Heat Dissipation 35 Energy Generation 15 Energy Capacity 265 Matter Stores 300 Matter Capacity 300 Sight Range 16 Terrain Scan Density 10 Armor Coverage 225 Propulsion Shielding 33 Evasion (%) 50 Recoil Reduction 2 Item Schematics ----------------- None Robot Schematics ------------------ None Fabricated ------------ Nothing Repaired ---------- Nothing Studied --------- None Alien Tech Used ----------------- None Achievements -------------- None Challenges ------------ None Game ------ Seed FlightPersonalShifter Manual? 0 Play Time 00:10:50 Cumulative 834.7 hours Start 2026.04.06 @ 21:06:31 End 2026.04.06 @ 21:16:24 Sessions 1 Manual Loads 0 Difficulty Rogue Special Mode None Game No. 417 Rogue 417 Adventurer 0 Explorer 0 Win Type - Total 71 Types 46/5/6/4/1/1/3/3/1/1 Lore% 92 Gallery% 82 Achievement% 71 Wizard Run 0 Options --------- Layout 0 ASCII 0 Keyboard 1 Movement Numpad Keybinds 0 Fullscreen 2 Font 18/SmallcapsGlow Map View 76x50 Zoom Use 0% Tactical HUD 1 Map Filters NONE Filters NONE Steam 1 RUN: 9ba7398a-5c1b-4de4-8a08-f5f280fc841b